bitfinex/quotes_SOLUSD_20240915
["timestamp","ask_amount","ask_price","bid_price","bid_amount"]
[1726434727856,0.1383735,132.6,132.55,23.776884]
[1726434728173,0.1383735,132.6,132.57,7.543]
[1726434730973,0.1383735,132.6,132.55,23.776884]
[1726434730974,0.1383735,132.6,132.56,7.5436]
[1726434731473,0.1383735,132.6,132.55,7.5442]
[1726434731658,0.1383735,132.6,132.5,9.55416993]
[1726434731860,7.5437,132.56,132.5,7.655633]
[1726434732065,7.5438,132.56,132.5,0.108633]
[1726434733281,7.5438,132.56,132.5,7.655633]
[1726434734451,7.5432,132.57,132.51,7.5465]
[1726434737148,7.5439,132.56,132.5,0.108633]
[1726434737349,6.1365,132.58,132.5,0.108633]
[1726434737350,7.5454,132.53,132.5,0.108633]
[1726434737864,7.5456,132.53,132.5,0.108633]
[1726434739550,22.5665,132.54,132.5,0.108633]
[1726434739791,6.1365,132.53,132.5,0.108633]
[1726434739979,7.5466,132.51,132.5,0.108633]
[1726434744492,7.546,132.52,132.5,0.108633]
[1726434745057,391.7365,132.53,132.5,0.108633]
[1726434745579,399.2821,132.53,132.5,0.108633]
[1726434745788,13.6821,132.53,132.5,0.108633]
[1726434746167,7.546,132.52,132.5,0.108633]
[1726434747186,6.1365,132.53,132.5,0.108633]
[1726434747386,7.45139873,132.53,132.5,0.108633]
[1726434748675,15.0216,132.54,132.5,0.108633]
[1726434748898,16.33634832,132.54,132.5,0.108633]
[1726434749198,23.88124832,132.54,132.5,0.108633]
[1726434751961,16.33634832,132.54,132.5,0.108633]
[1726434753064,7.5459,132.53,132.5,0.108633]
[1726434753566,7.546,132.52,132.5,0.108633]
[1726434754473,7.5454,132.53,132.5,0.108633]
[1726434755105,16.33634832,132.54,132.5,7.655533]
[1726434755269,16.33634832,132.54,132.5,0.108633]
[1726434756992,1.31474832,132.54,132.5,0.108633]
[1726434757494,8.85964832,132.54,132.5,0.108633]
[1726434757707,7.5456,132.53,132.5,0.108633]
[1726434758575,8.85964832,132.54,132.5,0.108633]
[1726434760503,1.31474832,132.54,132.5,0.108633]
[1726434761389,7.546,132.52,132.5,0.108633]
[1726434762402,7.5455,132.53,132.5,0.108633]
[1726434764204,1.31474832,132.54,132.5,0.108633]
[1726434764710,8.85974832,132.54,132.5,0.108633]
[1726434764878,1.31474832,132.54,132.5,7.655533]
[1726434766086,1.31474832,132.54,132.5,0.108633]
[1726434767988,8.86004832,132.54,132.5,0.108633]
[1726434769989,1.31474832,132.54,132.5,0.108633]
[1726434770403,1.31474832,132.54,132.5,7.655733]
[1726434773010,1.31474832,132.54,132.5,0.108633]
[1726434773212,8.86014832,132.54,132.5,0.108633]
[1726434773401,7.5457,132.53,132.5,0.108633]
[1726434774511,8.86050736,132.53,132.5,0.108633]
[1726434776410,1.31480736,132.53,132.5,0.108633]
[1726434776599,8.86030736,132.53,132.5,0.108633]
[1726434777325,1.31480736,132.53,132.5,0.108633]
[1726434777503,15.5008,132.57,132.5,0.108633]
[1726434777504,15.5008,132.57,132.5,7.655733]
[1726434777709,7.544,132.56,132.51,7.5465]
[1726434778018,8.85865386,132.56,132.51,7.5465]
[1726434778820,434.59714796,132.59,132.52,7.5459]
[1726434778821,408.28,132.59,132.52,7.5459]
[1726434779007,1.31450288,132.56,132.51,7.5465]
[1726434779398,7.5436,132.57,132.51,7.5465]
[1726434779619,1.31449232,132.56,132.51,7.5465]
[1726434779998,1.31449232,132.56,132.5,7.655633]
[1726434780698,1.31449232,132.56,132.5,0.108633]
[1726434781392,7.5461,132.52,132.5,0.108633]
[1726434782192,7.5453,132.54,132.5,0.108633]
[1726434782604,23.7678,132.55,132.5,0.108633]
[1726434783620,8.85819232,132.56,132.5,0.108633]
[1726434784205,1.31449232,132.56,132.5,0.108633]
[1726434784417,393.1432,132.57,132.5,0.108633]
[1726434784718,393.1432,132.57,132.51,15.7371]
[1726434785096,1.31445008,132.58,132.51,21.8646]
[1726434785504,1.31445008,132.58,132.52,7.5455]
[1726434785990,7.5443,132.55,132.51,21.8646]
[1726434786200,7.5449,132.54,132.5,0.108633]
[1726434788707,7.5454,132.53,132.5,0.108633]
[1726434789907,38.903,132.57,132.5,0.108633]
[1726434790104,7.5444,132.55,132.5,0.108633]
[1726434790738,7.5444,132.55,132.5,7.655333]
[1726434790935,7.5442,132.56,132.5,7.655633]
[1726434793830,7.5444,132.55,132.5,7.655633]
[1726434795608,1.31445008,132.58,132.52,20.0]
[1726434795834,0.1383735,132.6,132.51,22.4116]
[1726434796041,7.5425,132.59,132.54,7.5448]
[1726434796340,1.31427679,132.58,132.53,7.5453]
[1726434797323,1.31427679,132.58,132.52,7.5459]
[1726434797527,1.31427679,132.58,132.54,7.5448]
[1726434797737,1.31427679,132.58,132.55,7.5441]
[1726434797946,0.1383735,132.6,132.55,7.5441]
[1726434798253,1.31441778,132.59,132.52,1.50889302]
[1726434798542,0.1383735,132.6,132.57,7.5426]
[1726434800120,0.1383735,132.6,132.58,7.5424]
[1726434802020,0.1383735,132.6,132.57,23.4375]
[1726434802727,1.45251619,132.6,132.57,23.4375]
[1726434803245,1.45251619,132.6,132.57,7.5431]
[1726434804624,0.1383735,132.6,132.57,7.5431]
[1726434804860,0.1383735,132.6,132.58,7.5425]
[1726434805444,0.1383735,132.6,132.59,7.542]
[1726434808627,0.1383735,132.6,132.59,9.05016697]
[1726434809151,0.1383735,132.6,132.59,24.94456697]
[1726434809927,0.1383735,132.6,132.59,48.72145097]
[1726434811626,0.1383735,132.6,132.59,55.31355097]
[1726434813944,0.1383735,132.6,132.59,50.0285]
[1726434815032,0.1383735,132.6,132.59,30.0285]
[1726434815357,0.1383735,132.6,132.59,7.542]
[1726434815728,0.1383735,132.6,132.58,7.5425]
[1726434815927,0.1383735,132.6,132.57,20.0]
[1726434817271,0.1383735,132.6,132.59,7.542]
[1726434825349,0.1383735,132.6,132.59,31.318884]
[1726434827444,0.1383735,132.6,132.59,32.82688167]
[1726434828474,0.1383735,132.6,132.59,31.318884]
[1726434829343,0.1383735,132.6,132.58,1.50796342]
[1726434829567,0.1383735,132.6,132.59,7.542]
[1726434831270,0.1383735,132.6,132.59,31.318884]
[1726434831774,0.1383735,132.6,132.59,55.29287704]
[1726434832076,0.1383735,132.6,132.59,56.80075751]
[1726434832947,0.1383735,132.6,132.59,31.318884]
[1726434833257,0.1383735,132.6,132.59,7.542]
[1726434836868,0.1383735,132.6,132.59,31.318884]
[1726434838796,0.1383735,132.6,132.59,55.29287704]
[1726434839685,0.1383735,132.6,132.59,31.318884]
[1726434843886,0.1383735,132.6,132.59,56.80089532]
[1726434844060,0.1383735,132.6,132.59,75.29287704]
[1726434844473,0.1383735,132.6,132.59,79.1937105]
[1726434847378,0.1383735,132.6,132.59,75.29287704]
[1726434851087,0.1383735,132.6,132.59,76.80060859]
[1726434851588,0.1383735,132.6,132.59,75.29287704]
[1726434852403,0.1383735,132.6,132.59,76.80060953]
[1726434852889,0.2470065,132.64,132.6,43.776884]
[1726434853190,0.2470065,132.64,132.63,47.75087704]
[1726434853794,0.2470065,132.64,132.62,23.776884]
[1726434856677,0.2470065,132.64,132.62,20.0]
[1726434856884,0.2470065,132.64,132.63,23.776884]
[1726434858395,0.2470065,132.64,132.63,25.28444414]
[1726434859000,0.2470065,132.64,132.63,23.776884]
[1726434860698,0.2470065,132.64,132.63,25.28442067]
[1726434861478,0.2470065,132.64,132.63,23.776884]
[1726434862479,0.2470065,132.64,132.63,25.28430556]
[1726434863308,0.2470065,132.64,132.63,45.28430556]
[1726434866407,0.2470065,132.64,132.63,43.776884]
[1726434868718,0.2470065,132.68,132.63,43.776884]
[1726434868719,0.2470065,132.68,132.65,23.776884]
[1726434869076,0.2470065,132.68,132.65,47.75087704]
[1726434869988,0.2470065,132.68,132.67,39.07089348]
[1726434870781,0.2470065,132.68,132.64,15.29400948]
[1726434870989,0.2470065,132.68,132.65,20.0]
[1726434872110,0.2470065,132.68,132.62,43.90573698]
[1726434872312,0.2470065,132.68,132.64,20.0]
[1726434872996,0.2470065,132.68,132.63,20.0]
[1726434874416,0.2470065,132.68,132.62,43.776884]
[1726434874613,0.2470065,132.68,132.59,20.0]
[1726434874780,15.574,132.67,132.58,23.90573698]
[1726434875917,15.574,132.67,132.6,23.776884]
[1726434876083,15.574,132.67,132.61,20.0]
[1726434877820,15.574,132.67,132.59,20.0]
[1726434879311,15.574,132.67,132.61,20.0]
[1726434880511,23.1115,132.67,132.61,20.0]
[1726434880698,23.1115,132.67,132.58,23.90573698]
[1726434880699,7.5382,132.66,132.58,23.776884]
[1726434880905,7.5382,132.66,132.57,23.776884]
[1726434881624,6.2516,132.64,132.55,7.5438]
[1726434881808,6.2516,132.64,132.54,0.2470065]
[1726434881809,15.574,132.6,132.56,7.5431]
[1726434883696,16.88812034,132.6,132.56,7.5431]
[1726434884035,23.13972034,132.6,132.56,7.5431]
[1726434885429,23.13972034,132.6,132.54,0.2470065]
[1726434887124,23.13972034,132.6,132.55,7.5442]
[1726434887303,30.68122034,132.6,132.55,7.5442]
[1726434894311,23.13972034,132.6,132.56,7.5436]
[1726434898815,30.68132034,132.6,132.55,7.5442]
[1726434900535,7.542,132.59,132.54,7.7917065]
[1726434901612,23.13972034,132.6,132.54,7.7917065]
[1726434901613,7.5427,132.58,132.54,7.7917065]
[1726434901942,7.5421,132.59,132.54,7.7917065]
[1726434903017,7.5421,132.59,132.55,7.5441]
[1726434904357,1.31435878,132.58,132.54,0.2470065]
[1726434904523,1.31435878,132.58,132.57,7.5431]
[1726434904836,21.8256,132.6,132.56,7.5436]
[1726434905033,1.31424948,132.59,132.56,7.5436]
[1726434906221,21.8256,132.6,132.56,7.5436]
[1726434906427,29.3671,132.6,132.56,7.5436]
[1726434906616,30.68134824,132.6,132.56,7.5436]
[1726434906814,23.13984824,132.6,132.57,7.5431]
[1726434907020,21.8256,132.6,132.57,7.5431]
[1726434907738,21.8256,132.6,132.54,15.57825706]
[1726434907935,15.574,132.6,132.59,7.542]
[1726434908140,1.31412283,132.62,132.59,7.542]
[1726434908444,22.1561,132.63,132.59,7.542]
[1726434908643,22.1561,132.63,132.6,7.5413]
[1726434909925,1.3139093,132.64,132.61,7.5404]
[1726434910156,22.1561,132.66,132.58,15.33125056]
[1726434910459,1.31379574,132.64,132.56,15.33125056]
[1726434912431,8.85299574,132.64,132.59,7.542]
[1726434914955,8.85299574,132.64,132.55,23.93352812]
[1726434914956,29.6947,132.66,132.56,43.776884]
[1726434915132,1.31376409,132.65,132.56,43.776884]
[1726434915734,1.31376409,132.65,132.61,7.5404]
[1726434916033,1.31376409,132.65,132.62,7.5403]
[1726434916822,22.1561,132.66,132.63,7.5396]
[1726434917025,0.2470065,132.68,132.65,7.5386]
[1726434917236,0.2470065,132.68,132.64,7.5391]
[1726434917468,7.7843065,132.68,132.63,7.5396]
[1726434919031,0.2470065,132.68,132.6,23.776884]
[1726434919825,0.2470065,132.68,132.63,23.93352812]
[1726434920036,0.2470065,132.68,132.65,7.5386]
[1726434920228,0.2470065,132.68,132.64,7.5391]
[1726434920634,0.2470065,132.68,132.6,23.776884]
[1726434920635,0.2470065,132.68,132.61,20.0]
[1726434920923,7.7840065,132.68,132.63,7.5393]
[1726434921124,0.2470065,132.68,132.61,20.0]
[1726434921637,0.2470065,132.68,132.62,23.776884]
[1726434922028,0.2470065,132.68,132.64,20.0]
[1726434922232,0.2470065,132.68,132.66,23.776884]
[1726434925463,0.2470065,132.68,132.64,20.0]
[1726434928864,0.2470065,132.68,132.65,23.776884]
[1726434930768,0.2470065,132.68,132.66,1.50732713]
[1726434931469,0.2470065,132.68,132.65,47.71041212]
[1726434934350,0.2470065,132.68,132.67,23.93352812]
[1726434934568,0.2470065,132.68,132.65,47.71041212]
[1726434934778,0.2470065,132.68,132.65,23.776884]
[1726434936274,0.2470065,132.68,132.65,47.71041212]
[1726434936569,0.2470065,132.68,132.66,1.50716655]
[1726434937473,0.2470065,132.68,132.65,47.71041212]
[1726434937856,0.2470065,132.68,132.66,1.50716887]
[1726434938849,0.2470065,132.68,132.67,23.93352812]
[1726434939948,0.2470065,132.68,132.67,15.29268731]
[1726434940176,0.2470065,132.68,132.67,16.79979937]
[1726434940349,0.2470065,132.68,132.67,60.57668337]
[1726434940674,0.2470065,132.68,132.67,59.06957131]
[1726434942450,0.2470065,132.68,132.67,35.29268731]
[1726434942654,0.2470065,132.68,132.67,15.29268731]
[1726434943853,0.2470065,132.68,132.65,23.776884]
[1726434943854,0.2470065,132.68,132.66,20.0]
[1726434944047,0.2470065,132.68,132.66,35.29268731]
[1726434944678,0.2470065,132.68,132.67,15.29268731]
[1726434945063,0.2470065,132.68,132.67,16.7999657]
[1726434945377,0.2470065,132.68,132.67,16.79977938]
[1726434945762,0.2470065,132.68,132.67,40.57666338]
[1726434945964,0.2470065,132.68,132.67,39.06957131]
[1726434946670,0.2470065,132.68,132.67,43.776884]
[1726434946870,0.2470065,132.68,132.67,59.06957131]
[1726434954871,0.2470065,132.72,132.68,43.776884]
[1726434955068,0.2470065,132.72,132.71,15.29268731]
[1726434955266,0.2470065,132.72,132.7,15.29268731]
[1726434957668,0.2470065,132.72,132.69,15.29268731]
[1726434959481,0.2470065,132.72,132.7,15.29268731]
[1726434959794,0.2470065,132.72,132.71,15.29268731]
[1726434960004,0.2470065,132.72,132.71,60.57574322]
[1726434960301,0.2470065,132.72,132.71,59.06957131]
[1726434961996,0.2470065,132.76,132.72,43.776884]
[1726434962173,0.2470065,132.76,132.75,15.29268731]
[1726434962993,0.2470065,132.76,132.72,43.776884]
[1726434963175,0.2470065,132.76,132.75,15.29268731]
[1726434969606,0.2470065,132.76,132.75,59.06957131]
[1726434970108,0.2470065,132.8,132.76,43.776884]
[1726434970410,0.2470065,132.8,132.79,15.29268731]
[1726434972616,0.2470065,132.8,132.75,20.0]
[1726434972822,0.2470065,132.8,132.72,6.3015]
[1726434972823,0.2470065,132.8,132.76,15.29268731]
[1726434973191,0.2470065,132.8,132.79,15.29268731]
[1726434974414,0.2470065,132.8,132.77,15.29268731]
[1726434974585,0.2470065,132.8,132.73,15.29268731]
[1726434975210,7.7772065,132.8,132.73,15.29268731]
[1726434975886,7.5308,132.79,132.71,39.63341549]
[1726434976398,7.7771065,132.8,132.71,39.63341549]
[1726434977412,7.7771065,132.8,132.72,20.0]
[1726434978808,23.6366,132.79,132.72,20.0]
[1726434979600,16.1059,132.79,132.72,20.0]
[1726434980914,16.1059,132.79,132.74,43.776884]
[1726434981123,0.2470065,132.8,132.75,23.87581549]
[1726434981616,0.2470065,132.8,132.77,23.87581549]
[1726434982296,0.2470065,132.8,132.78,25.28260615]
[1726434983302,0.2470065,132.8,132.78,23.776884]
[1726434986119,0.2470065,132.8,132.76,23.776884]
[1726434986410,0.2470065,132.8,132.77,20.0]
[1726434987089,0.2470065,132.8,132.77,43.87581549]
[1726434987290,0.2470065,132.8,132.78,1.50579484]
[1726434987515,0.2470065,132.8,132.77,43.87581549]
[1726434987810,0.2470065,132.8,132.78,23.776884]
[1726434989323,0.2470065,132.8,132.79,23.87581549]
[1726434989625,0.2470065,132.8,132.79,25.38088557]
[1726434989805,0.2470065,132.8,132.79,45.38088557]
[1726434989999,0.2470065,132.8,132.79,69.15776957]
[1726434990518,0.2470065,132.8,132.79,67.65269949]
[1726434991320,0.2470065,132.84,132.8,43.776884]
[1726434991523,0.2470065,132.84,132.83,23.87581549]
[1726434992423,16.5859,132.87,132.83,23.87581549]
[1726434992597,0.2557755,132.85,132.83,23.87581549]
[1726434992796,0.2557755,132.85,132.84,1.50527145]
[1726434993218,0.2557755,132.85,132.83,23.87581549]
[1726434996125,0.2557755,132.85,132.84,1.50527235]
[1726434996332,0.2557755,132.85,132.83,23.87581549]
[1726434998042,0.2557755,132.85,132.84,15.25172811]
[1726434998539,0.2557755,132.85,132.84,35.25172811]
[1726434999823,0.2557755,132.85,132.84,59.02861211]
[1726435004008,0.2557755,132.85,132.84,35.25172811]
[1726435004706,0.2817855,132.9,132.85,43.776884]
[1726435004902,0.2817855,132.9,132.89,15.25172811]
[1726435005124,0.2817855,132.9,132.88,15.25172811]
[1726435005439,0.2817855,132.9,132.86,15.25172811]
[1726435006633,0.2817855,132.9,132.87,15.25172811]
[1726435007338,0.2817855,132.9,132.88,15.25172811]
[1726435007630,0.2817855,132.9,132.89,16.7565127]
[1726435007839,0.2817855,132.9,132.89,15.25172811]
[1726435008619,0.2817855,132.9,132.89,35.25172811]
[1726435010839,0.2817855,132.9,132.89,59.02861211]
[1726435011613,0.2817855,132.9,132.89,60.53293936]
[1726435011926,0.2817855,132.94,132.9,20.0]
[1726435012238,0.2817855,132.94,132.93,15.25172811]
[1726435012740,0.2817855,132.94,132.91,1.50432299]
[1726435012741,0.2817855,132.94,132.92,15.25172811]
[1726435013110,0.2817855,132.94,132.93,15.25172811]
[1726435013919,0.2817855,132.94,132.93,59.02861211]
[1726435014119,0.2817855,132.94,132.93,60.53261332]
[1726435015215,0.2817855,132.94,132.93,59.02861211]
[1726435015428,0.2817855,132.99,132.94,43.776884]
[1726435015755,0.2817855,132.99,132.98,15.25172811]
[1726435016328,0.2817855,132.99,132.97,15.25172811]
[1726435016526,0.2817855,132.99,132.98,15.25172811]
[1726435019332,0.2817855,132.99,132.94,43.776884]
[1726435019642,0.2817855,132.99,132.96,15.25172811]
[1726435021021,0.2817855,132.99,132.98,15.25172811]
[1726435023355,0.2817855,132.99,132.98,35.25172811]
[1726435023644,0.2817855,133.03,132.99,20.0]
[1726435023815,0.2817855,133.03,133.02,15.25172811]
[1726435024018,0.2817855,133.03,133.0,25.27316633]
[1726435024225,0.2817855,133.03,133.02,23.76983218]
[1726435024728,8.82110289,133.1,133.02,23.76983218]
[1726435024935,0.1896138,133.03,133.02,43.76983218]
[1726435025136,0.3468356,133.09,133.03,43.776884]
[1726435025445,0.3468356,133.09,133.03,43.76983218]
[1726435025832,0.3468356,133.09,133.03,20.0]
[1726435027339,0.3468356,133.09,133.02,20.0]
[1726435029737,0.3468356,133.09,133.03,23.76983218]
[1726435031553,7.8605356,133.09,133.01,23.76983218]
[1726435031855,7.8605356,133.09,132.96,6.0138]
[1726435031856,7.5159,133.05,132.96,6.0138]
[1726435032028,7.5159,133.05,132.97,30.0]
[1726435032232,7.5159,133.05,132.96,29.78363218]
[1726435032531,14.1766,133.01,132.92,29.90613218]
[1726435032839,6.6584,133.01,132.92,29.90613218]
[1726435033047,6.6584,133.01,132.92,23.76983218]
[1726435033361,7.5194,132.99,132.9,23.76983218]
[1726435033559,7.5194,132.99,132.88,29.90613218]
[1726435033742,23.776884,132.99,132.88,23.76983218]
[1726435033936,7.5206,132.97,132.88,23.76983218]
[1726435034138,23.776884,132.99,132.86,23.76983218]
[1726435034139,7.5212,132.96,132.86,23.76983218]
[1726435034340,7.5222,132.94,132.84,31.63093746]
[1726435034659,7.5222,132.94,132.84,23.76983218]
[1726435035250,7.5216,132.96,132.84,23.76983218]
[1726435035844,31.298684,132.95,132.85,20.0]
[1726435036150,23.776884,132.93,132.83,0.3468356]
[1726435036346,31.298784,132.95,132.84,23.76983218]
[1726435036549,7.5209,132.97,132.86,23.76983218]
[1726435036740,23.776884,132.96,132.86,23.76983218]
[1726435037561,23.776884,132.96,132.87,20.0]
[1726435041366,23.776884,132.97,132.89,20.3468356]
[1726435041752,31.297384,132.97,132.89,20.3468356]
[1726435043075,23.776884,132.97,132.89,0.3468356]
[1726435043446,31.297884,132.97,132.89,0.3468356]
[1726435043755,23.776884,132.97,132.89,20.3468356]
[1726435044070,7.5195,132.99,132.9,23.76983218]
[1726435044257,7.5195,132.99,132.9,25.27444062]
[1726435044457,14.1771,133.01,132.92,23.76983218]
[1726435044765,14.1771,133.01,132.93,1.50434432]
[1726435044958,7.5189,133.0,132.92,23.76983218]
[1726435045157,7.5189,133.0,132.9,23.76983218]
[1726435045554,7.5189,133.0,132.91,20.0]
[1726435045758,1.30879628,132.99,132.91,20.0]
[1726435048251,6.6584,133.01,132.93,20.0]
[1726435048655,6.6584,133.01,132.89,6.4831356]
[1726435048656,6.6584,133.01,132.91,20.0]
[1726435049474,7.5196,132.99,132.91,20.0]
[1726435049846,7.5201,132.98,132.91,20.0]
[1726435050544,7.5201,132.98,132.9,23.76983218]
[1726435050545,7.5206,132.97,132.9,20.0]
[1726435051144,7.5211,132.96,132.89,6.4831356]
[1726435051957,7.5205,132.97,132.89,6.4831356]
[1726435052585,23.776884,133.0,132.89,6.4831356]
[1726435053264,7.5199,132.98,132.89,6.4831356]
[1726435054155,23.776884,132.98,132.9,43.76983218]
[1726435055278,23.776884,133.0,132.9,43.76983218]
[1726435055772,23.776884,133.0,132.9,20.0]
[1726435056575,7.5205,132.97,132.9,20.0]
[1726435056775,7.5216,132.95,132.89,6.4831356]
[1726435057170,7.5211,132.96,132.89,6.4831356]
[1726435057983,7.5206,132.97,132.89,6.4831356]
[1726435058579,7.5212,132.96,132.89,6.4831356]
[1726435058774,7.5216,132.95,132.89,0.3468356]
[1726435059488,7.5224,132.94,132.89,0.3468356]
[1726435059661,7.5228,132.93,132.89,0.3468356]
[1726435060062,7.524,132.91,132.89,0.3468356]
[1726435060480,7.5244,132.9,132.89,0.3468356]
[1726435061390,31.301284,132.9,132.89,0.3468356]
[1726435061678,7.5244,132.9,132.89,0.3468356]
[1726435062383,31.301284,132.9,132.89,0.3468356]
[1726435064790,31.301284,132.9,132.83,0.3468356]
[1726435064791,7.5259,132.88,132.83,0.3468356]
[1726435065104,7.5272,132.86,132.83,0.3468356]
[1726435065970,7.5262,132.87,132.83,0.3468356]
[1726435066271,23.776884,132.86,132.83,0.3468356]
[1726435067069,23.776884,132.87,132.83,0.3468356]
[1726435067284,22.61,132.91,132.83,0.3468356]
[1726435067285,43.776884,132.91,132.83,0.3468356]
[1726435067492,7.5239,132.91,132.83,0.3468356]
[1726435067698,7.5245,132.9,132.83,0.3468356]
[1726435068003,7.5251,132.89,132.83,0.3468356]
[1726435068170,15.7666,132.92,132.83,0.3468356]
[1726435068371,15.7666,132.92,132.83,16.9727356]
[1726435068872,1.30961804,132.91,132.83,16.9727356]
[1726435070300,8.83351804,132.91,132.83,16.9727356]
[1726435070798,31.301384,132.9,132.83,16.9727356]
[1726435071583,7.5256,132.88,132.83,16.9727356]
[1726435071884,7.5261,132.87,132.83,0.3468356]
[1726435073093,46.386884,132.9,132.83,0.3468356]
[1726435073094,23.776884,132.9,132.83,0.3468356]
[1726435073294,31.301784,132.9,132.83,0.3468356]
[1726435074397,23.776884,132.9,132.83,0.3468356]
[1726435074700,1.30961804,132.91,132.83,0.3468356]
[1726435075001,8.83391804,132.91,132.83,0.3468356]
[1726435075380,7.5245,132.9,132.83,0.3468356]
[1726435077207,8.83361804,132.91,132.83,0.3468356]
[1726435077996,31.301484,132.9,132.83,0.3468356]
[1726435080004,7.5254,132.89,132.83,0.3468356]
[1726435080503,31.301384,132.9,132.83,0.3468356]
[1726435081073,7.525,132.89,132.83,0.3468356]
[1726435081277,7.5261,132.87,132.83,0.3468356]
[1726435081516,7.5257,132.88,132.83,0.3468356]
[1726435082004,31.301384,132.9,132.83,0.3468356]
[1726435082183,7.525,132.89,132.83,0.3468356]
[1726435082377,23.776884,132.9,132.83,0.3468356]
[1726435082378,31.301384,132.9,132.83,0.3468356]
[1726435084510,23.776884,132.9,132.83,0.3468356]
[1726435084699,8.83351804,132.91,132.84,15.194]
[1726435084878,7.5245,132.9,132.84,15.194]
[1726435085712,7.525,132.89,132.84,15.194]
[1726435086400,7.5256,132.88,132.84,15.194]
[1726435087612,7.5251,132.89,132.84,15.194]
[1726435087881,23.776884,132.88,132.84,15.194]
[1726435089212,1.30981253,132.87,132.84,15.194]
[1726435090106,8.83601253,132.87,132.84,15.194]
[1726435090309,8.83601253,132.87,132.83,0.3627152]
[1726435091208,1.30981253,132.87,132.83,0.3627152]
[1726435094606,23.776884,132.86,132.83,0.3627152]
[1726435094821,7.5278,132.84,132.83,0.3627152]
[1726435095132,7.5273,132.85,132.83,0.3627152]
[1726435096600,23.776884,132.84,132.83,0.3627152]
[1726435097127,31.304684,132.84,132.83,0.3627152]
[1726435097325,53.914684,132.84,132.83,0.3627152]
[1726435097518,53.914684,132.84,132.79,0.277618]
[1726435097837,7.5296,132.81,132.79,0.277618]
[1726435098422,31.306984,132.8,132.79,0.277618]
[1726435101011,38.3206,132.84,132.79,0.277618]
[1726435101327,46.386884,132.83,132.79,0.277618]
[1726435102421,23.776884,132.81,132.79,0.277618]
[1726435105029,31.306984,132.8,132.79,0.277618]
[1726435105414,23.776884,132.8,132.79,0.277618]
[1726435107928,31.306984,132.8,132.79,0.277618]
[1726435109008,23.776884,132.8,132.79,0.277618]
[1726435109631,25.08753936,132.8,132.79,0.277618]
[1726435111838,1.31065536,132.8,132.79,0.277618]
[1726435112215,385.6,132.86,132.79,0.277618]
[1726435112415,1.31028571,132.84,132.79,15.589318]
[1726435114744,1.31028571,132.84,132.8,7.79733828]
[1726435115155,1.31028571,132.84,132.8,6.2914]
[1726435115343,393.45508609,132.9,132.81,1.50577405]
[1726435115551,7.5254,132.89,132.8,6.2914]
[1726435115721,7.85508609,132.9,132.8,6.2914]
[1726435115722,1.3099379,132.87,132.8,6.2914]
[1726435116037,7.5245,132.9,132.8,6.2914]
[1726435116038,7.5245,132.9,132.81,23.76983218]
[1726435116249,1.30983908,132.88,132.81,23.76983218]
[1726435116824,1.30983908,132.88,132.84,15.3117]
[1726435122251,7.5239,132.91,132.84,15.3117]
[1726435122627,1.30965879,132.88,132.84,15.3117]
[1726435122825,7.525,132.89,132.84,15.3117]
[1726435123038,1.30975881,132.87,132.84,15.3117]
[1726435124071,31.303584,132.86,132.8,21.6031]
[1726435124273,7.5273,132.85,132.8,21.6031]
[1726435124965,46.386884,132.86,132.79,0.277618]
[1726435126058,7.5279,132.84,132.79,0.277618]
[1726435126257,23.776884,132.83,132.79,0.277618]
[1726435128630,31.305284,132.83,132.79,0.277618]
[1726435129237,23.776884,132.83,132.79,0.277618]
[1726435131642,31.305284,132.83,132.79,0.277618]
[1726435135539,7.529,132.82,132.79,0.277618]
[1726435137661,7.5284,132.83,132.79,0.277618]
[1726435137848,23.776884,132.82,132.79,0.277618]
[1726435142292,7.5277,132.85,132.79,0.277618]
[1726435142785,23.776884,132.84,132.79,0.277618]
[1726435143080,22.61,132.86,132.79,0.277618]
[1726435143081,400.98276282,132.87,132.79,0.277618]
[1726435143381,1.31034963,132.85,132.79,0.277618]
[1726435144459,1.31034963,132.85,132.8,6.5324]
[1726435147283,1.31034963,132.85,132.8,6.7490942]
[1726435147760,22.61,132.83,132.8,0.2166942]
[1726435147964,23.776884,132.84,132.76,0.2479669]
[1726435147965,7.5304,132.8,132.76,0.2479669]